bitfinex/quotes_ETHUSD_20250129
["timestamp","ask_amount","ask_price","bid_price","bid_amount"]
[1738177383091,3.98694,3104.6,3103.0,0.8211]
[1738177383287,3.7659,3104.6,3103.0,4.04376]
[1738177383584,3.22178,3103.9,3103.1,3.22256]
[1738177383788,3.7659,3104.6,3103.1,3.22256]
[1738177383789,3.22135,3104.3,3103.1,0.75885219]
[1738177383984,3.22197,3103.7,3103.0,0.8211]
[1738177384227,0.7659,3104.6,3102.5,0.7595]
[1738177384228,3.0,3104.0,3102.5,0.7595]
[1738177384438,4.22050693,3104.2,3102.5,0.7595]
[1738177384439,3.22276,3103.0,3102.5,0.7595]
[1738177384643,3.22276,3103.0,3102.2,0.1611534]
[1738177384644,9.66711,3103.3,3102.2,0.1611534]
[1738177384785,3.22319,3102.6,3102.2,0.1611534]
[1738177384987,3.22292,3102.8,3102.2,3.3846634]
[1738177385284,3.22341,3102.3,3102.2,0.1611534]
[1738177385792,3.22351,3102.2,3102.1,3.4e-06]
[1738177385994,6.22351,3102.2,3102.1,3.4e-06]
[1738177386219,4.652377,3102.3,3100.6,3.22514]
[1738177386546,4.22050693,3101.6,3099.9,3.22586]
[1738177386743,3.22547,3100.4,3099.7,0.7852]
[1738177386896,3.22496,3100.9,3099.8,3.22596]
[1738177387097,7.00862,3101.5,3099.8,0.401116]
[1738177387395,0.7843,3101.5,3099.9,3.22591]
[1738177387704,3.22446,3101.3,3100.5,3.22523]
[1738177387888,3.0,3101.3,3099.8,0.0101264]
[1738177388085,3.2253,3100.5,3099.8,0.0101264]
[1738177388285,0.8091,3101.1,3099.8,0.0101264]
[1738177388543,0.8091,3101.6,3100.1,0.8214]
[1738177388690,4.03327,3101.6,3100.7,3.22501]
[1738177388890,4.99150693,3103.1,3100.9,3.22487]
[1738177389091,3.99367,3103.1,3101.3,35.0]
[1738177389322,3.22268,3103.0,3101.3,35.0101264]
[1738177389526,3.2236,3102.2,3101.4,0.03192794]
[1738177389739,3.22351,3102.2,3101.4,0.03192794]
[1738177389938,6.22424,3101.5,3101.4,0.03192794]
[1738177390241,6.22435,3101.4,3101.3,6.4e-06]
[1738177390445,6.23185,3101.4,3101.3,6.4e-06]
[1738177390651,3.22576,3100.1,3099.2,3.22654]
[1738177390809,3.22576,3100.1,3099.0,4.02838]
[1738177390810,3.22576,3100.1,3099.3,0.03099194]
[1738177391149,3.22497,3100.8,3099.1,3.22669]
[1738177391288,3.0,3100.9,3099.4,0.03125724]
[1738177391492,0.7731,3100.3,3099.2,0.03143006]
[1738177391704,6.22622,3099.6,3099.5,0.03117083]
[1738177391915,3.22634,3099.5,3098.9,0.1625318]
[1738177392155,0.7731,3100.3,3099.2,3.22655]
[1738177392156,3.99861,3100.3,3099.2,3.22655]
[1738177392356,3.22613,3099.7,3098.9,0.1625318]
[1738177392504,3.22613,3099.7,3099.3,0.03164706]
[1738177392699,0.322613,3099.7,3098.9,0.1625318]
[1738177392949,3.0,3099.9,3098.9,0.1625318]
[1738177393156,3.22601,3099.8,3099.0,0.03190025]
[1738177393362,3.22635,3099.5,3098.9,0.1625318]
[1738177393569,5.03770693,3101.0,3099.0,0.7698]
[1738177393703,3.22566,3100.2,3099.1,3.22669]
[1738177393903,3.22487,3100.9,3098.9,0.1625318]
[1738177394103,5.03770693,3101.0,3099.7,0.785]
[1738177394104,3.22497,3100.8,3099.7,0.785]
[1738177394363,3.22383,3101.9,3099.8,35.55]
[1738177394660,3.22454,3101.3,3100.4,3.22534]
[1738177394845,3.21954,3101.3,3100.3,3.22541]
[1738177395045,3.21954,3101.3,3099.9,3.24085]
[1738177395046,3.22458,3101.2,3100.5,3.22525]
[1738177395252,3.22458,3101.2,3100.6,0.03213601]
[1738177395425,3.22435,3101.4,3100.6,3.22515]
[1738177395624,0.81950069,3101.8,3100.7,0.03208558]
[1738177395964,3.22527,3100.6,3099.9,3.22586]
[1738177396111,1.085427,3100.6,3099.1,3.22666]
[1738177396309,3.0,3100.1,3098.9,0.1625318]
[1738177396565,1.085427,3100.6,3098.9,0.1625318]
[1738177396566,3.22684,3099.0,3098.9,0.1625318]
[1738177399309,3.22684,3099.0,3098.9,1.8e-06]
[1738177399563,4.69391041,3099.0,3098.9,1.8e-06]
[1738177400168,3.98808,3100.5,3098.9,1.8e-06]
[1738177400339,5.21714406,3100.2,3098.9,1.8e-06]
[1738177400503,3.22655,3099.3,3098.9,1.8e-06]
[1738177400704,3.22581,3100.0,3098.9,1.8e-06]
[1738177401020,3.2254,3100.4,3098.9,1.8e-06]
[1738177401021,3.22664,3099.2,3098.9,1.8e-06]
[1738177401224,3.22675,3099.1,3098.9,1.8e-06]
[1738177401431,3.22684,3099.0,3098.9,1.8e-06]
[1738177401610,3.22675,3099.1,3098.9,1.8e-06]
[1738177401813,3.22684,3099.0,3098.9,1.8e-06]
[1738177403309,3.99615,3099.4,3098.9,1.8e-06]
[1738177403509,3.22582,3100.0,3098.9,0.03207547]
[1738177403861,0.8068,3100.1,3098.9,0.03207547]
[1738177403862,3.22602,3099.8,3099.0,0.03198724]
[1738177404164,3.22626,3099.6,3099.0,0.03198724]
[1738177404329,0.330027,3100.6,3099.2,0.55]
[1738177404330,0.8068,3100.6,3099.2,0.55]
[1738177404512,0.8068,3101.9,3100.4,3.22529]
[1738177404866,0.1,3103.0,3099.4,0.8065]
[1738177404867,0.92477441,3101.8,3100.5,0.02960417]
[1738177405081,0.7923,3102.5,3101.0,3.22476]
[1738177405372,3.22333,3102.4,3101.6,3.22406]
[1738177405569,3.22309,3102.7,3101.9,3.22381]
[1738177405709,0.8049,3103.1,3102.0,3.22372]
[1738177405907,0.8049,3103.1,3102.0,0.03604129]
[1738177405908,0.43610966,3103.1,3102.0,0.03604129]
[1738177406124,3.22268,3103.0,3102.0,0.03604129]
[1738177406363,0.16667508,3103.1,3102.2,3.22342]
[1738177406679,0.8049,3103.6,3102.3,0.03061529]
[1738177406870,0.8049,3103.6,3102.4,3.2232]
[1738177407009,0.8049,3103.6,3102.9,3.22269]
[1738177407214,0.7575,3104.1,3103.0,3.22263]
[1738177407452,0.7575,3104.1,3102.6,3.223]
[1738177407453,3.22228,3103.4,3102.6,3.223]
[1738177407627,3.22245,3103.3,3102.6,3.223]
[1738177407843,3.22265,3103.1,3102.0,3.22364]
[1738177408044,3.22278,3103.0,3102.1,0.03545871]
[1738177408250,1.144878,3102.9,3101.5,3.22416]
[1738177408545,3.22374,3102.0,3101.6,0.03126227]
[1738177408760,3.22403,3101.8,3101.6,0.03126227]
[1738177408921,3.22403,3101.8,3100.6,0.8123]
[1738177409126,3.0,3102.5,3100.6,0.8123]
[1738177409409,0.8039,3101.1,3099.2,0.7972]
[1738177409615,3.22543,3100.4,3099.5,0.0345192]
[1738177409917,0.8039,3101.1,3100.5,3.22519]
[1738177410108,3.22458,3101.2,3100.3,3.2254]
[1738177410359,3.22489,3100.9,3100.1,3.22563]
[1738177410666,3.22528,3100.5,3099.5,3.22624]
[1738177410966,3.547429,3100.9,3100.3,3.22539]
[1738177410967,0.322489,3100.9,3100.3,3.22539]
[1738177411113,3.0,3101.3,3099.8,3.22598]
[1738177411309,0.8039,3101.6,3100.4,0.03842135]
[1738177411310,6.22528,3100.5,3100.4,0.03842135]
[1738177411544,3.22601,3099.8,3098.9,3.22686]
[1738177411715,3.226,3099.9,3099.0,3.22675]
[1738177411923,3.622528,3100.5,3098.8,3.22696]
[1738177412129,3.22592,3099.9,3099.1,0.04223987]
[1738177412368,3.847868,3100.5,3099.2,0.55]
[1738177412666,0.0075,3100.7,3099.2,0.04224916]
[1738177412860,3.22653,3099.3,3098.5,3.22733]
[1738177413015,3.22653,3099.3,3098.6,0.03911552]
[1738177413212,3.22675,3099.1,3098.6,0.03911552]
[1738177413452,5.21714406,3099.6,3097.5,5.78234]
[1738177413622,3.22674,3099.2,3098.4,3.22743]
[1738177413850,3.22684,3099.0,3098.4,3.22743]
[1738177414012,3.0,3099.9,3095.6,0.2]
[1738177414013,5.21714406,3098.5,3095.6,0.2]
[1738177414209,0.8312,3097.8,3096.7,3.22914]
[1738177414412,3.22838,3097.6,3096.7,3.2292]
[1738177414613,3.2281,3097.8,3096.2,3.22969]
[1738177414873,3.2277,3098.2,3097.0,3.22883]
[1738177415049,0.8043,3098.3,3097.0,3.2289]
[1738177415366,4.03187,3098.3,3096.9,0.8298]
[1738177415545,3.22828,3097.7,3096.9,0.8298]
[1738177415754,3.22853,3097.4,3096.4,3.22954]
[1738177416074,0.45535844,3098.2,3094.7,0.7657]
[1738177416075,5.21714406,3096.6,3094.7,0.7657]
[1738177416214,3.23126,3094.8,3094.2,0.00471831]
[1738177416418,0.8019,3095.7,3094.3,0.04405827]
[1738177416777,3.23195,3094.2,3093.5,3.02253366]
[1738177417061,3.23197,3094.1,3093.6,0.03268761]
[1738177417278,3.23237,3093.7,3093.6,0.03268761]
[1738177417412,3.23237,3093.7,3093.4,0.00996754]
[1738177417413,3.23258,3093.5,3093.4,0.00996754]
[1738177418080,6.01904406,3094.0,3093.4,0.00996754]
[1738177418360,0.7961,3094.6,3093.4,0.00996754]
[1738177418564,3.23164,3094.4,3093.4,0.00996754]
[1738177418768,3.23091,3095.1,3093.5,0.32427375]
[1738177418970,3.2311,3095.0,3093.5,0.0343937]
[1738177419169,3.23116,3094.9,3093.5,0.0343937]
[1738177419371,3.23105,3095.0,3093.5,0.0343937]
[1738177419681,3.23091,3095.1,3093.7,3.23227]
[1738177419814,0.7788,3095.2,3094.3,3.23172]
[1738177420014,3.2308,3095.3,3094.4,0.03382698]
[1738177420221,3.22958,3096.4,3094.9,3.23109]
[1738177420222,0.7693,3096.4,3094.9,3.23109]
[1738177420487,3.23017,3095.9,3095.0,0.03304141]
[1738177420676,0.7693,3096.4,3094.3,0.7904]
[1738177420677,0.0075,3096.3,3094.3,0.7904]
[1738177420958,3.23116,3094.9,3094.4,0.03405801]
[1738177421261,3.23116,3094.9,3093.5,0.751]
[1738177421262,0.0075,3094.6,3093.4,0.00996754]
[1738177421460,3.23258,3093.5,3093.4,0.00996754]
[1738177421613,8.44972406,3093.5,3093.4,0.00996754]
[1738177421973,11.44972406,3093.5,3093.4,0.00996754]
[1738177422117,1.55109041,3093.5,3091.0,0.03234415]
[1738177422316,0.8288,3093.6,3092.0,3.23405]
[1738177422515,3.23309,3093.1,3091.8,3.23434]
[1738177422762,3.23342,3092.7,3092.1,0.03345232]
[1738177422944,3.23352,3092.6,3091.9,0.03358453]
[1738177423271,3.23364,3092.5,3091.4,3.23471]
[1738177423413,3.23355,3092.6,3091.6,3.2345]
[1738177423777,3.23355,3092.6,3091.5,0.03366891]
[1738177423778,3.23371,3092.5,3091.7,0.03379962]
[1738177424069,0.0075,3093.3,3091.6,3.23452]
[1738177424214,3.0,3093.4,3091.7,3.26789291]
[1738177424415,3.23309,3093.1,3091.7,0.03346291]
[1738177424624,3.23309,3093.1,3091.2,3.23489]
[1738177424625,3.2332,3093.0,3091.8,3.23433]
[1738177424857,3.2332,3093.0,3091.3,3.78488]
[1738177424858,0.8288,3093.6,3091.9,0.0332954]
[1738177425070,0.8288,3093.6,3092.0,3.23412]
[1738177425071,3.23307,3093.1,3092.0,3.23412]
[1738177425233,3.23324,3092.9,3091.8,0.8063]
[1738177425426,3.23301,3093.1,3092.0,3.23405]
[1738177425677,3.23301,3093.1,3091.8,0.8063]
[1738177425678,3.23321,3092.9,3092.1,0.03391517]
[1738177425879,0.8288,3093.6,3092.1,0.03391517]
[1738177425880,3.23275,3093.4,3092.1,0.32680752]
[1738177426061,3.23275,3093.4,3092.2,0.03330292]
[1738177426260,0.8288,3093.6,3091.9,0.55]
[1738177426468,4.06132,3093.6,3092.2,3.23394]
[1738177426818,4.06132,3093.6,3091.8,3.8063]
[1738177426819,3.233,3093.1,3092.3,35.03400453]
[1738177427118,3.23354,3092.6,3092.3,0.03400453]
[1738177427317,3.23327,3092.9,3092.3,0.03400453]
[1738177427318,3.2333,3092.9,3092.3,0.03400453]
[1738177427521,3.2334,3092.8,3092.0,35.0]
[1738177427668,3.23298,3093.2,3092.4,0.0338819]
[1738177427875,0.323298,3093.2,3092.0,3.23407]
[1738177428219,3.2329,3093.2,3092.3,3.2338]
[1738177428420,0.7718,3094.3,3092.1,35.03414232]
[1738177428421,3.23227,3093.8,3092.1,35.03414232]
[1738177428642,0.0075,3093.9,3090.7,5.21714406]
[1738177428781,3.23334,3092.8,3091.8,3.23435]
[1738177428988,3.23338,3092.8,3092.0,3.23414]
[1738177429167,3.23406,3092.1,3091.9,0.03277037]
[1738177429395,3.7572,3093.0,3091.1,4.05515]
[1738177429633,3.23444,3091.8,3090.9,3.2353]
[1738177429831,3.23447,3091.7,3090.7,3.23548]
[1738177429999,3.23458,3091.6,3090.7,3.23548]
[1738177430205,3.23458,3091.6,3090.6,0.7542]
[1738177430206,3.0,3092.8,3090.6,3.98981]
[1738177430445,3.2348,3091.4,3090.6,0.7542]
[1738177430751,3.23459,3091.6,3090.6,3.98977]
[1738177431052,3.23527,3091.0,3090.6,0.7542]
[1738177431192,3.0,3091.6,3090.2,0.10815679]
[1738177431396,3.23478,3091.4,3090.2,0.10815679]
[1738177431738,3.0,3091.6,3090.2,0.10815679]
[1738177431739,3.23563,3090.6,3090.2,0.10815679]
[1738177432057,3.23442,3091.8,3090.6,3.23558]
[1738177432209,3.23383,3092.4,3090.7,0.55]
[1738177432415,3.23403,3092.2,3090.3,0.7768]
[1738177432591,3.23382,3092.4,3090.8,35.0]
[1738177433242,3.235,3091.2,3090.3,0.7768]
[1738177433395,5.21714406,3092.2,3090.3,0.7768]
[1738177433596,3.23523,3091.0,3090.3,0.7768]
[1738177433794,3.23522,3091.0,3090.3,0.7768]
[1738177434021,3.23503,3091.2,3090.3,4.01273]
[1738177434434,3.23503,3091.2,3090.3,0.7768]
[1738177434649,3.23529,3091.0,3090.2,0.10815679]
[1738177434939,0.7746,3091.3,3090.2,0.10815679]
[1738177434940,3.23561,3090.7,3090.2,0.10815679]
[1738177435148,3.23572,3090.6,3090.2,0.10815679]
[1738177435311,3.0,3090.1,3089.3,0.005]
[1738177435524,3.23687,3089.4,3089.3,0.005]
[1738177436397,3.23801,3088.4,3088.2,0.01]
[1738177436591,4.01692,3088.3,3088.2,0.01]
[1738177436791,3.7789,3088.3,3087.2,0.16607778]
[1738177437111,3.23886,3087.6,3087.2,0.16607778]
[1738177437326,3.7789,3088.3,3086.8,0.0008]
[1738177437327,3.23888,3087.5,3086.8,0.0008]
[1738177437495,3.23918,3087.2,3086.8,0.0008]
[1738177438099,12.25722406,3087.2,3087.1,1e-05]
[1738177438311,3.24107,3085.4,3085.3,0.0999186]
[1738177439493,6.24107,3085.4,3085.3,0.0999186]
[1738177439752,6.24107,3085.4,3085.3,0.0499186]
[1738177439753,3.24107,3085.4,3085.3,0.0499186]
[1738177439943,3.24093,3085.6,3085.3,0.0499186]
[1738177440126,3.24107,3085.4,3085.3,8.6e-06]
[1738177440664,3.0,3084.6,3083.3,0.23024871]
[1738177440866,6.24275,3083.8,3083.3,0.23024871]
[1738177441069,3.24317,3083.4,3083.3,0.23024871]
[1738177441368,3.24359,3083.0,3082.6,0.22846667]
[1738177441533,3.24359,3083.0,3082.0,1.0]
[1738177441534,6.2438,3082.8,3082.0,1.0]
[1738177441737,3.24598,3080.8,3080.4,0.1]
[1738177441959,5.21714406,3081.8,3080.4,0.1]
[1738177442274,0.7701,3082.0,3080.9,3.24577]
[1738177442447,3.24404,3082.6,3081.3,3.24536]
[1738177442655,0.324404,3082.5,3081.4,0.03767888]
[1738177442832,3.2439,3082.8,3081.4,0.03767888]
[1738177443018,3.24455,3082.1,3080.9,0.7979]
[1738177443220,3.24476,3081.9,3081.0,0.03802848]
[1738177443420,3.24451,3082.2,3081.0,0.03802848]
[1738177443646,3.2439,3082.7,3080.9,0.7979]
[1738177443834,3.2439,3082.7,3079.7,3.24702]
[1738177443835,0.8315,3082.1,3081.0,0.03829268]
[1738177444031,3.24544,3081.3,3081.0,0.03829268]
[1738177444235,3.2459,3080.9,3080.1,3.41111706]
[1738177444449,3.2459,3080.9,3080.2,0.03907657]
[1738177444652,3.24559,3081.1,3080.2,0.03907657]
[1738177444850,3.0,3081.0,3080.2,0.03907657]
[1738177445169,0.7672,3081.1,3080.1,3.27866439]
[1738177445476,3.24553,3081.2,3079.4,0.2]
[1738177445672,0.0075,3081.1,3079.6,0.7555]
[1738177445978,0.7672,3082.7,3081.0,35.0]
[1738177445979,0.1,3082.6,3081.0,35.0]
[1738177446124,0.7672,3082.7,3081.0,35.0]
[1738177446331,3.2453,3081.4,3081.1,0.03882876]
[1738177446524,3.24472,3082.0,3081.1,0.03882876]
[1738177446756,3.24472,3082.0,3080.4,0.7555]
[1738177446757,3.2447,3082.0,3081.7,35.0]
[1738177447070,3.2447,3082.0,3080.4,0.7555]
[1738177447071,3.24507,3081.6,3080.4,4.00173]
[1738177447217,3.24458,3082.1,3080.9,3.24576]
[1738177447422,3.24445,3082.2,3081.0,0.55]
[1738177447617,3.24459,3082.1,3081.2,35.0]
[1738177447865,3.24482,3081.9,3081.2,35.0]
[1738177448173,0.7672,3082.7,3081.2,35.0]
[1738177448487,3.2436,3083.0,3081.3,0.7573]
[1738177448771,3.24377,3082.9,3081.3,0.7573]
[1738177449076,3.24328,3083.3,3082.2,3.24438]
[1738177449362,3.24328,3083.3,3081.6,3.24506]
[1738177449363,3.24291,3083.7,3081.9,3.0]
[1738177449577,3.24264,3083.9,3081.7,0.55]
[1738177449868,3.24404,3082.6,3081.3,0.7573]
[1738177450020,3.2438,3082.8,3081.5,3.24514]
[1738177450221,3.2437,3082.9,3081.4,3.0]
[1738177450418,3.24333,3083.3,3081.5,3.24517]
[1738177450620,3.24385,3082.8,3081.5,3.24516]
[1738177450919,3.24372,3082.9,3081.8,3.2448]
[1738177451119,3.24372,3082.9,3081.3,0.7573]
[1738177451120,0.399762,3084.1,3081.3,0.7573]
[1738177451350,3.24285,3083.8,3082.7,3.2439]
[1738177451668,6.4836,3084.7,3082.6,0.822139]
[1738177451818,1.007,3084.8,3082.6,0.7897]
[1738177452164,3.2418,3084.7,3082.6,0.7897]
[1738177452482,0.807,3084.8,3082.6,0.7897]
[1738177452483,3.24247,3084.1,3082.7,0.03796982]
[1738177452770,3.24257,3084.0,3082.9,3.24367]
[1738177452970,3.2423,3084.3,3083.2,3.24328]
[1738177453154,3.24173,3084.8,3083.1,3.24348]
[1738177453352,3.24173,3084.8,3082.6,3.7897]
[1738177453353,3.24173,3084.8,3083.3,0.04054602]
[1738177453560,3.24173,3084.8,3083.9,0.7631]
[1738177453756,0.3331285,3085.0,3084.1,3.24241]
[1738177453757,3.5746485,3085.0,3084.1,3.24241]
[1738177454073,3.5746485,3085.0,3083.9,0.7631]
[1738177454074,3.24074,3085.8,3084.6,3.24188]
[1738177454243,3.23993,3086.5,3084.8,3.2417]
[1738177454456,3.23983,3086.6,3085.8,3.24062]
[1738177454658,0.33325289,3086.7,3086.3,3.24011]
[1738177454820,0.33325289,3086.7,3085.9,0.03607619]
[1738177455024,0.33325289,3086.7,3086.6,3.23981]
[1738177455269,0.33325289,3086.7,3086.6,4.02351]
[1738177455472,2.89e-06,3086.7,3086.6,7.78604474]
[1738177455722,0.005,3088.4,3087.1,0.2]
[1738177455923,0.005,3088.4,3088.0,3.23825]
[1738177456225,0.005,3088.4,3088.3,6.23802]
[1738177456378,0.005,3088.4,3088.3,6.55156879]
[1738177456569,0.005,3088.4,3088.3,3.27076203]
[1738177457020,0.17114,3088.4,3088.2,0.03237504]
[1738177457223,3.24292,3088.4,3088.3,0.03103375]
[1738177457519,0.005,3088.4,3087.2,3.23918]
[1738177457813,3.23818,3088.2,3087.3,3.27156692]
[1738177458015,0.005,3088.4,3087.3,0.03252692]
[1738177458189,0.005,3088.4,3088.3,3.23802]
[1738177458621,0.005,3088.4,3088.3,3.26961417]
[1738177458973,0.1,3091.0,3088.3,5.24873823]
[1738177459173,4.15038,3091.3,3089.2,3.23699]
[1738177459452,1.57956017,3091.3,3088.6,3.23765]
[1738177459649,1.295615,3090.7,3089.3,3.23694]
[1738177459862,0.2,3090.6,3088.1,3.23823]
[1738177460075,4.052,3089.8,3088.1,3.23823]
[1738177460248,0.54171441,3090.6,3088.1,3.23822]
[1738177460533,0.54171441,3090.6,3089.6,3.23665]
[1738177460534,3.23588,3090.4,3089.6,3.23665]
[1738177460849,3.77733441,3090.6,3088.6,3.23763]
[1738177460850,0.54171441,3090.6,3088.6,3.23763]
[1738177461052,0.798,3089.9,3088.0,0.7784]
[1738177461366,1.33971441,3090.6,3089.9,3.23629]
[1738177461659,0.798,3091.2,3088.7,3.03236351]
[1738177461968,0.798,3091.2,3091.0,3.23516]
[1738177462109,3.23457,3091.6,3089.8,3.23641]
[1738177462313,3.0,3091.3,3088.6,3.23771]
[1738177462563,5.21714406,3091.4,3090.6,3.23555]
[1738177462852,0.403257,3091.5,3090.3,6.47186]
[1738177463051,0.798,3091.7,3089.5,0.0075]
[1738177463052,0.798,3091.7,3090.8,3.23539]
[1738177463257,5.21714406,3092.6,3091.3,3.23479]
[1738177463457,5.21714406,3092.6,3089.3,2.565]
[1738177463458,5.21714406,3092.0,3089.3,2.565]
[1738177463762,3.23591,3090.4,3089.3,5.80196]
[1738177463968,3.23573,3090.5,3089.5,3.23668]
[1738177464105,3.23616,3090.1,3088.1,0.8161]
[1738177464302,3.23599,3090.3,3088.2,0.04728166]
[1738177464523,3.23647,3089.8,3088.3,3.23802]
[1738177464750,0.323599,3090.2,3088.4,0.03237753]
[1738177464910,3.23602,3090.3,3089.1,3.23718]
[1738177465112,0.813,3089.4,3088.1,0.8161]
[1738177465455,0.8267,3090.1,3088.6,3.23765]
[1738177465681,3.23654,3089.8,3088.6,3.23765]
[1738177465833,3.23682,3089.5,3088.5,3.23776]
[1738177466035,5.21714406,3089.6,3087.5,0.829]
[1738177466237,3.23702,3089.3,3088.5,3.23778]
[1738177466406,0.8267,3089.5,3087.5,0.829]
[1738177466608,0.60438441,3089.4,3087.7,3.23858]
[1738177466810,3.23857,3087.8,3087.4,0.16]
[1738177467125,3.23857,3087.8,3086.9,3.23947]
[1738177467351,3.2389,3087.5,3086.6,3.23977]
[1738177467554,5.21714406,3087.1,3087.0,5.32e-06]
[1738177467704,5.21714406,3087.1,3084.6,0.8094]
[1738177467705,5.21714406,3087.1,3086.7,0.03557284]
[1738177467904,0.7645,3087.4,3086.2,3.24014]
[1738177468209,3.23933,3087.1,3086.1,3.24023]
[1738177468435,3.23909,3087.3,3085.4,0.0075]
[1738177468644,3.23866,3087.7,3086.6,3.23971]
[1738177468869,3.23862,3087.8,3086.4,0.0075]
[1738177469032,3.23774,3088.6,3087.7,3.23864]
[1738177469352,0.8304,3089.3,3087.9,3.2384]
[1738177469506,3.23741,3088.9,3087.3,0.55]
[1738177469711,3.23794,3088.4,3087.5,3.23883]
[1738177470022,0.8304,3089.3,3087.3,3.23902]
[1738177470023,0.8304,3089.3,3087.9,3.23841]
[1738177470207,3.23814,3088.2,3086.7,4.05125]
[1738177470554,0.8304,3089.3,3086.8,3.2396]
[1738177470555,3.23842,3088.0,3086.8,3.2396]
[1738177470775,3.23778,3088.6,3087.6,3.23875]
[1738177470980,3.23728,3089.1,3088.1,3.23822]
[1738177471134,0.406768,3089.1,3086.9,0.1]
[1738177471479,3.23663,3089.7,3088.9,3.23739]
[1738177471677,0.7968,3090.5,3089.7,3.23655]
[1738177471838,0.7968,3090.5,3090.0,3.23623]
[1738177472038,3.83729441,3091.9,3089.5,0.7773]
[1738177472039,0.7968,3091.2,3089.5,0.7773]
[1738177472386,3.23576,3090.5,3089.4,3.23686]
[1738177472583,3.23509,3091.1,3089.7,3.23655]
[1738177472584,3.23571,3090.6,3089.7,3.23655]
[1738177472786,3.23538,3090.9,3090.0,3.23616]
[1738177473085,3.23622,3090.1,3089.2,3.23698]
[1738177473235,3.23638,3089.9,3089.1,3.23718]
[1738177473436,3.23509,3091.1,3089.8,3.23643]
[1738177473679,0.7968,3091.2,3089.0,35.0]
[1738177473896,3.23541,3090.8,3089.3,3.23691]
[1738177474152,3.23483,3091.4,3090.6,3.23558]
[1738177474452,3.23383,3092.3,3091.6,3.23457]
[1738177474810,0.8124,3092.4,3091.4,3.23473]
[1738177474985,3.23314,3093.0,3091.5,0.7749]
[1738177475164,0.8124,3093.3,3092.5,3.2336]
[1738177475340,3.23292,3093.2,3092.2,3.23391]
[1738177475546,0.005,3093.4,3091.8,0.03233491]
[1738177475746,3.23299,3093.2,3092.1,3.23404]
[1738177475992,0.323299,3093.1,3090.1,5.21714406]
[1738177476202,0.323299,3093.1,3088.5,1.64167546]
[1738177476203,3.23457,3091.6,3090.5,5.79971]
[1738177476352,3.0,3092.5,3090.6,3.23558]
[1738177476702,5.21714406,3092.6,3090.5,2.564]
[1738177476902,3.2357,3090.6,3089.7,3.23655]
[1738177477193,3.23561,3090.6,3088.8,3.23746]
[1738177477408,5.21714406,3090.8,3088.5,0.7515]
[1738177477695,3.23534,3090.9,3088.5,0.7515]
[1738177477995,3.23713,3089.2,3088.5,0.7515]
[1738177478338,5.21714406,3089.6,3087.8,0.8299]
[1738177478627,3.23739,3089.0,3087.1,0.8299]
[1738177478839,3.23777,3088.6,3087.5,3.23884]
[1738177479136,3.23865,3087.7,3087.1,0.8299]
[1738177479339,3.23823,3088.1,3086.5,3.3544]
[1738177479635,1.141077,3088.6,3086.6,35.03239376]
[1738177479636,3.23855,3087.8,3086.6,35.03239376]
[1738177479956,3.23781,3088.5,3086.9,3.23945]
[1738177480232,3.23826,3088.1,3087.3,3.23903]
[1738177480546,0.8127,3089.2,3087.5,0.0075]
[1738177480682,0.8127,3089.9,3089.3,3.23688]
[1738177480882,3.23558,3090.7,3089.4,3.23684]
[1738177480883,0.7715,3090.7,3089.4,3.23684]
[1738177481203,0.7715,3090.7,3088.7,0.8106]
[1738177481204,0.7715,3090.7,3088.7,4.0482]
[1738177481426,4.407719,3090.7,3088.8,3.67468906]
[1738177481588,0.7581,3091.3,3090.4,3.23582]
[1738177481933,3.23498,3091.2,3090.4,3.23579]
[1738177482146,3.23488,3091.3,3089.8,3.23639]
[1738177482363,8.45068406,3092.6,3089.5,3.8136]
[1738177482364,5.21714406,3092.6,3090.3,0.8136]
[1738177482660,0.7581,3092.9,3091.6,0.8136]
[1738177482961,3.23188,3094.2,3091.6,0.8136]
[1738177482962,7.04e-06,3092.7,3092.6,4.04712]
[1738177483099,7.04e-06,3092.7,3092.6,7.04712]
[1738177483299,0.32384127,3094.1,3092.6,7.04712]
[1738177483300,0.32384127,3094.1,3093.3,3.23279]
[1738177483737,0.32384127,3094.1,3093.3,3.26511028]
[1738177484049,0.32384127,3094.1,3093.0,3.23305]
[1738177484205,0.32384127,3094.1,3093.3,3.23279]
[1738177484407,0.0838683,3093.4,3093.3,0.0323258]
[1738177484596,0.0838683,3093.4,3091.9,0.8065]
[1738177484795,0.0838683,3093.4,3092.6,3.23348]
[1738177485149,0.41551413,3093.4,3092.1,2.59533142]
[1738177485449,0.0838683,3093.4,3092.1,2.563]
[1738177485613,3.23281,3093.3,3092.2,3.23392]
[1738177485870,0.0838683,3093.4,3092.2,0.03233435]
[1738177486139,0.0838683,3093.4,3091.9,0.8065]
[1738177486316,3.23395,3092.2,3091.4,3.23477]
[1738177486518,3.23362,3092.6,3091.5,3.23464]
[1738177486719,3.23342,3092.7,3091.9,3.23417]
[1738177487035,0.0838683,3093.4,3091.2,0.8065]
[1738177487036,3.23353,3092.6,3091.2,0.8065]
[1738177487352,3.23392,3092.3,3091.4,3.23471]
[1738177487647,3.23417,3092.0,3091.2,4.04144]
[1738177487813,0.0788683,3092.6,3091.2,0.8065]
[1738177488015,3.23425,3092.0,3090.3,0.7893]
[1738177488222,0.0788683,3092.0,3091.2,0.0075]
[1738177488435,0.0788683,3092.0,3091.9,3.23425]
[1738177488639,0.0788683,3092.0,3091.9,3.26658586]
[1738177488813,0.0788683,3092.0,3091.9,3.23425]
[1738177489167,0.0788683,3092.0,3091.9,3.678906]
[1738177489338,0.0788683,3092.0,3091.9,3.23425]
[1738177489518,0.0788683,3092.0,3091.7,39.05988]